[Event "January 2 Late 2024"]
[Site "https://www.chess.com"]
[Date "2024.01.02"]
[Round "3"]
[White "Keller, Peter"]
[Black "Vujacic, Igor"]
[Result "1/2-1/2"]
[Board "182"]
[TimeControl "180+1"]
[WhiteFideId "1272105"]
[BlackFideId "932620"]
[WhiteElo "2204"]
[BlackElo "2451"]
[WhiteTeam "GER"]
[BlackTeam "MNE"]
[WhiteClock "0:00:35"]
[BlackClock "0:00:06"]

1. e4 {[%clk 0:03:00]}  c5 {[%clk 0:03:00]} 2. Nf3 {[%clk 0:03:00]}  Nc6 {[%clk 0:03:01]} 3. d4 {[%clk 0:02:55]}  cxd4 {[%clk 0:03:02]} 4. Nxd4 {[%clk 0:02:56]}  g6 {[%clk 0:03:02]} 5. c4 {[%clk 0:02:56]}  Nf6 {[%clk 0:03:02]} 6. Nc3 {[%clk 0:02:56]}  d6 {[%clk 0:03:03]} 7. f3 {[%clk 0:02:54]}  Bg7 {[%clk 0:03:02]} 8. Be3 {[%clk 0:02:54]}  O-O {[%clk 0:03:02]} 9. Be2 {[%clk 0:02:54]}  Nh5 {[%clk 0:03:02]} 10. O-O {[%clk 0:02:49]}  Nf4 {[%clk 0:03:02]} 11. Qd2 {[%clk 0:02:39]}  Bxd4 {[%clk 0:02:48]} 12. Bxd4 {[%clk 0:02:39]}  Nxd4 {[%clk 0:02:49]} 13. Qxd4 {[%clk 0:02:40]}  e5 {[%clk 0:02:49]} 14. Qe3 {[%clk 0:02:38]}  Qg5 {[%clk 0:02:50]} 15. Kf2 {[%clk 0:02:20]}  Qxg2+ {[%clk 0:02:34]} 16. Ke1 {[%clk 0:02:20]}  Qxh2 {[%clk 0:02:34]} 17. Kd2 {[%clk 0:02:15]}  Ng2 {[%clk 0:02:27]} 18. Qf2 {[%clk 0:02:08]}  Qh6+ {[%clk 0:02:19]} 19. Kd3 {[%clk 0:02:04]}  Nf4+ {[%clk 0:02:18]} 20. Kc2 {[%clk 0:02:05]}  Be6 {[%clk 0:02:16]} 21. Rh1 {[%clk 0:02:01]}  Qg7 {[%clk 0:02:13]} 22. Rag1 {[%clk 0:01:55]}  Rfc8 {[%clk 0:02:02]} 23. b3 {[%clk 0:01:55]}  Rc6 {[%clk 0:01:49]} 24. Kb2 {[%clk 0:01:52]}  a6 {[%clk 0:01:49]} 25. Bf1 {[%clk 0:01:44]}  Qf6 {[%clk 0:01:14]} 26. Qh2 {[%clk 0:01:28]}  h5 {[%clk 0:01:09]} 27. Ne2 {[%clk 0:01:25]}  Nxe2 {[%clk 0:00:51]} 28. Bxe2 {[%clk 0:01:26]}  Kf8 {[%clk 0:00:52]} 29. Qf2 {[%clk 0:01:18]}  Rac8 {[%clk 0:00:46]} 30. Qg2 {[%clk 0:01:18]}  Qf4 {[%clk 0:00:37]} 31. Qg5 {[%clk 0:01:11]}  Qxg5 {[%clk 0:00:35]} 32. Rxg5 {[%clk 0:01:12]}  b5 {[%clk 0:00:36]} 33. Rgg1 {[%clk 0:01:02]}  bxc4 {[%clk 0:00:35]} 34. Bxc4 {[%clk 0:01:02]}  Bxc4 {[%clk 0:00:35]} 35. bxc4 {[%clk 0:01:03]}  Rxc4 {[%clk 0:00:36]} 36. Rd1 {[%clk 0:01:01]}  Rb8+ {[%clk 0:00:27]} 37. Ka3 {[%clk 0:01:01]}  Rc3+ {[%clk 0:00:25]} 38. Ka4 {[%clk 0:01:01]}  Rb6 {[%clk 0:00:25]} 39. Rb1 {[%clk 0:00:59]}  Rbc6 {[%clk 0:00:23]} 40. Rb3 {[%clk 0:00:58]}  Rxb3 {[%clk 0:00:16]} 41. axb3 {[%clk 0:00:59]}  Ke7 {[%clk 0:00:13]} 42. b4 {[%clk 0:00:58]}  Kd7 {[%clk 0:00:10]} 43. Ka5 {[%clk 0:00:57]}  Kc7 {[%clk 0:00:10]} 44. Rg1 {[%clk 0:00:54]}  Kb7 {[%clk 0:00:09]} 45. Rd1 {[%clk 0:00:54]}  Rb6 {[%clk 0:00:08]} 46. Rc1 {[%clk 0:00:52]}  h4 {[%clk 0:00:06]} 47. Rg1 {[%clk 0:00:52]}  g5 {[%clk 0:00:06]} 48. Rxg5 {[%clk 0:00:52]}  Rb5+ {[%clk 0:00:03]} 49. Ka4 {[%clk 0:00:52]}  d5 {[%clk 0:00:03]} 50. Rxe5 {[%clk 0:00:46]}  d4 {[%clk 0:00:02]} 51. Re7+ {[%clk 0:00:42]}  Kc6 {[%clk 0:00:02]} 52. Rxf7 {[%clk 0:00:43]}  d3 {[%clk 0:00:02]} 53. Kb3 {[%clk 0:00:43]}  Rh5 {[%clk 0:00:01]} 54. Rg7 {[%clk 0:00:39]}  h3 {[%clk 0:00:02]} 55. Rg1 {[%clk 0:00:40]}  h2 {[%clk 0:00:02]} 56. Rh1 {[%clk 0:00:41]}  Rh3 {[%clk 0:00:02]} 57. Kc3 {[%clk 0:00:40]}  Rxf3 {[%clk 0:00:02]} 58. Rxh2 {[%clk 0:00:41]}  Re3 {[%clk 0:00:03]} 59. Kd4 {[%clk 0:00:37]}  Rg3 {[%clk 0:00:02]} 60. Rd2 {[%clk 0:00:35]}  Kb5 {[%clk 0:00:02]} 61. Rxd3 {[%clk 0:00:34]}  Rxd3+ {[%clk 0:00:03]} 62. Kxd3 {[%clk 0:00:34]}  Kxb4 {[%clk 0:00:03]} 63. Kd4 {[%clk 0:00:33]}  a5 {[%clk 0:00:04]} 64. e5 {[%clk 0:00:33]}  a4 {[%clk 0:00:04]} 65. e6 {[%clk 0:00:34]}  a3 {[%clk 0:00:05]} 66. e7 {[%clk 0:00:35]}  a2 {[%clk 0:00:05]} 67. e8=Q {[%clk 0:00:36]}  a1=Q+ {[%clk 0:00:06]} 68. Kd5 {[%clk 0:00:34]}  Qd1+ {[%clk 0:00:06]} 69. Ke6 {[%clk 0:00:33]}  Qg4+ {[%clk 0:00:06]} 70. Ke7 {[%clk 0:00:33]}  Qg5+ {[%clk 0:00:06]} 71. Kf7 {[%clk 0:00:33]}  Qh5+ {[%clk 0:00:06]} 72. Kf8 {[%clk 0:00:34]}  Qh8+ {[%clk 0:00:06]} 73. Kf7 {[%clk 0:00:34]}  Qh5+ {[%clk 0:00:06]} 74. Kf8 {[%clk 0:00:34]}  Qh6+ {[%clk 0:00:06]} 75. Kf7 {[%clk 0:00:33]}  Qh7+ {[%clk 0:00:07]} 76. Kf8 {[%clk 0:00:34]}  Qh8+ {[%clk 0:00:05]} 77. Kf7 {[%clk 0:00:34]}  Qxe8+ {[%clk 0:00:06]} 78. Kxe8 {[%clk 0:00:35]} 1/2-1/2

[Event "January 2 Late 2024"]
[Site "https://www.chess.com"]
[Date "2024.01.02"]
[Round "3"]
[White "Montano Vicente, Guadalupe"]
[Black "Mizzi, Jack"]
[Result "0-1"]
[Board "183"]
[TimeControl "180+1"]
[WhiteFideId "5181399"]
[BlackFideId "5602521"]
[WhiteElo "2151"]
[BlackElo "2431"]
[WhiteTeam "MEX"]
[BlackTeam "MLT"]
[WhiteClock "0:00:00"]
[BlackClock "0:00:02"]

1. d4 {[%clk 0:03:00]}  Nf6 {[%clk 0:02:58]} 2. c4 {[%clk 0:03:00]}  e6 {[%clk 0:02:57]} 3. Nf3 {[%clk 0:02:59]}  d5 {[%clk 0:02:57]} 4. Nc3 {[%clk 0:02:59]}  Bb4 {[%clk 0:02:56]} 5. Qa4+ {[%clk 0:02:57]}  Nc6 {[%clk 0:02:55]} 6. e3 {[%clk 0:02:57]}  O-O {[%clk 0:02:54]} 7. Bd2 {[%clk 0:02:57]}  a6 {[%clk 0:02:53]} 8. Qc2 {[%clk 0:02:56]}  dxc4 {[%clk 0:02:52]} 9. Bxc4 {[%clk 0:02:55]}  b5 {[%clk 0:02:52]} 10. Be2 {[%clk 0:02:50]}  Bb7 {[%clk 0:02:51]} 11. Rd1 {[%clk 0:02:49]}  Ne7 {[%clk 0:02:48]} 12. O-O {[%clk 0:02:46]}  Bxc3 {[%clk 0:02:44]} 13. Bxc3 {[%clk 0:02:43]}  Ne4 {[%clk 0:02:44]} 14. Rc1 {[%clk 0:02:09]}  Rc8 {[%clk 0:02:31]} 15. Rfd1 {[%clk 0:02:07]}  Ba8 {[%clk 0:02:07]} 16. Ba5 {[%clk 0:02:03]}  Qd5 {[%clk 0:01:55]} 17. Bd3 {[%clk 0:01:18]}  Ng5 {[%clk 0:01:46]} 18. Ne1 {[%clk 0:01:00]}  f5 {[%clk 0:01:24]} 19. Qc5 {[%clk 0:00:52]}  Qxc5 {[%clk 0:01:12]} 20. Rxc5 {[%clk 0:00:53]}  Nd5 {[%clk 0:01:06]} 21. Rdc1 {[%clk 0:00:50]}  c6 {[%clk 0:01:00]} 22. a4 {[%clk 0:00:42]}  Bb7 {[%clk 0:00:58]} 23. b3 {[%clk 0:00:36]}  Kf7 {[%clk 0:00:52]} 24. Nc2 {[%clk 0:00:32]}  Ne4 {[%clk 0:00:45]} 25. Bxe4 {[%clk 0:00:30]}  fxe4 {[%clk 0:00:46]} 26. Nb4 {[%clk 0:00:29]}  Ne7 {[%clk 0:00:39]} 27. Re5 {[%clk 0:00:22]}  Nd5 {[%clk 0:00:30]} 28. Rxe4 {[%clk 0:00:18]}  Kf6 {[%clk 0:00:10]} 29. Nxd5+ {[%clk 0:00:17]}  cxd5 {[%clk 0:00:09]} 30. Rf4+ {[%clk 0:00:17]}  Kg6 {[%clk 0:00:09]} 31. Rxc8 {[%clk 0:00:15]}  Rxc8 {[%clk 0:00:09]} 32. h4 {[%clk 0:00:14]}  bxa4 {[%clk 0:00:06]} 33. bxa4 {[%clk 0:00:14]}  Rc4 {[%clk 0:00:06]} 34. Rg4+ {[%clk 0:00:12]}  Kf7 {[%clk 0:00:06]} 35. Bd8 {[%clk 0:00:11]}  Rxa4 {[%clk 0:00:05]} 36. Rf4+ {[%clk 0:00:10]}  Ke8 {[%clk 0:00:05]} 37. Bc7 {[%clk 0:00:09]}  Rc4 {[%clk 0:00:04]} 38. Be5 {[%clk 0:00:09]}  a5 {[%clk 0:00:02]} 39. Bxg7 {[%clk 0:00:08]}  a4 {[%clk 0:00:03]} 40. Rf8+ {[%clk 0:00:08]}  Ke7 {[%clk 0:00:02]} 41. Rb8 {[%clk 0:00:08]}  Bc6 {[%clk 0:00:01]} 42. Rb6 {[%clk 0:00:07]}  Kd7 {[%clk 0:00:01]} 43. Ra6 {[%clk 0:00:07]}  Rc1+ {[%clk 0:00:01]} 44. Kh2 {[%clk 0:00:07]}  Ra1 {[%clk 0:00:02]} 45. Be5 {[%clk 0:00:07]}  a3 {[%clk 0:00:02]} 46. Ra5 {[%clk 0:00:07]}  a2 {[%clk 0:00:02]} 47. Kg3 {[%clk 0:00:07]}  Kc8 {[%clk 0:00:02]} 48. h5 {[%clk 0:00:07]}  Kb7 {[%clk 0:00:02]} 49. Kf3 {[%clk 0:00:06]}  Kb6 {[%clk 0:00:03]} 50. Ra3 {[%clk 0:00:06]}  Bb5 {[%clk 0:00:03]} 51. g4 {[%clk 0:00:06]}  Bc4 {[%clk 0:00:03]} 52. Bf6 {[%clk 0:00:05]}  Rh1 {[%clk 0:00:02]} 53. Rxa2 {[%clk 0:00:04]}  Bxa2 {[%clk 0:00:02]} 54. Kf4 {[%clk 0:00:04]}  Bb3 {[%clk 0:00:02]} 55. f3 {[%clk 0:00:04]}  Bd1 {[%clk 0:00:02]} 56. Kg5 {[%clk 0:00:02]}  Rf1 {[%clk 0:00:02]} 57. f4 {[%clk 0:00:02]}  Rg1 {[%clk 0:00:03]} 58. Kh6 {[%clk 0:00:02]}  Rxg4 {[%clk 0:00:03]} 59. Kxh7 {[%clk 0:00:02]}  Rg3 {[%clk 0:00:04]} 60. h6 {[%clk 0:00:03]}  Bc2+ {[%clk 0:00:04]} 61. Kh8 {[%clk 0:00:02]}  Rxe3 {[%clk 0:00:03]} 62. Bg5 {[%clk 0:00:02]}  Rh3 {[%clk 0:00:03]} 63. Kg7 {[%clk 0:00:02]}  Kc6 {[%clk 0:00:03]} 64. Kf6 {[%clk 0:00:03]}  Bf5 {[%clk 0:00:04]} 65. Ke5 {[%clk 0:00:03]}  Kd7 {[%clk 0:00:04]} 66. Kf6 {[%clk 0:00:03]}  Kd6 {[%clk 0:00:04]} 67. Kf7 {[%clk 0:00:03]}  Rh1 {[%clk 0:00:02]} 68. Kg7 {[%clk 0:00:03]}  Kc6 {[%clk 0:00:02]} 69. Kf8 {[%clk 0:00:02]}  Kb5 {[%clk 0:00:02]} 70. Kg7 {[%clk 0:00:01]}  Kc4 {[%clk 0:00:02]} 71. Bf6 {[%clk 0:00:02]}  Rg1+ {[%clk 0:00:02]} 72. Kh8 {[%clk 0:00:02]}  Rh1 {[%clk 0:00:02]} 73. Kg7 {[%clk 0:00:01]}  Kd3 {[%clk 0:00:02]} 74. Be5 {[%clk 0:00:00]}  Ke4 {[%clk 0:00:02]} 0-1

[Event "January 2 Late 2024"]
[Site "https://www.chess.com"]
[Date "2024.01.02"]
[Round "3"]
[White "Seletsky, Grigory"]
[Black "hoshiboshi"]
[Result "1-0"]
[Board "184"]
[TimeControl "180+1"]
[WhiteFideId "14112191"]
[WhiteElo "2421"]
[BlackElo "2145"]
[WhiteTeam "UKR"]
[WhiteClock "0:01:50"]
[BlackClock "0:00:00"]

1. e4 {[%clk 0:03:00]}  c5 {[%clk 0:02:54]} 2. Nc3 {[%clk 0:02:59]}  Nc6 {[%clk 0:02:53]} 3. f4 {[%clk 0:02:59]}  g6 {[%clk 0:02:53]} 4. Nf3 {[%clk 0:03:00]}  Bg7 {[%clk 0:02:53]} 5. Bc4 {[%clk 0:03:01]}  e6 {[%clk 0:02:53]} 6. d3 {[%clk 0:03:01]}  Nge7 {[%clk 0:02:52]} 7. a3 {[%clk 0:03:02]}  O-O {[%clk 0:02:52]} 8. Ba2 {[%clk 0:03:02]}  Rb8 {[%clk 0:02:49]} 9. h4 {[%clk 0:03:03]}  h5 {[%clk 0:02:45]} 10. Be3 {[%clk 0:02:49]}  d6 {[%clk 0:02:38]} 11. Ng5 {[%clk 0:02:43]}  d5 {[%clk 0:02:02]} 12. Bxc5 {[%clk 0:02:39]}  d4 {[%clk 0:02:01]} 13. Ne2 {[%clk 0:02:38]}  b6 {[%clk 0:01:58]} 14. Bxe7 {[%clk 0:02:33]}  Qxe7 {[%clk 0:01:56]} 15. Qd2 {[%clk 0:02:31]}  Kh8 {[%clk 0:01:34]} 16. O-O-O {[%clk 0:02:31]}  f6 {[%clk 0:01:34]} 17. Nf3 {[%clk 0:02:29]}  e5 {[%clk 0:01:30]} 18. fxe5 {[%clk 0:02:25]}  fxe5 {[%clk 0:01:29]} 19. Kb1 {[%clk 0:02:25]}  b5 {[%clk 0:01:25]} 20. Rdf1 {[%clk 0:02:20]}  b4 {[%clk 0:01:24]} 21. a4 {[%clk 0:02:19]}  Be6 {[%clk 0:00:49]} 22. Bxe6 {[%clk 0:02:15]}  Qxe6 {[%clk 0:00:49]} 23. b3 {[%clk 0:02:15]}  Ne7 {[%clk 0:00:32]} 24. Qg5 {[%clk 0:02:09]}  Ng8 {[%clk 0:00:09]} 25. Qg3 {[%clk 0:02:05]}  Rbe8 {[%clk 0:00:08]} 26. Nd2 {[%clk 0:02:00]}  Bh6 {[%clk 0:00:06]} 27. Nc4 {[%clk 0:02:00]}  Rxf1+ {[%clk 0:00:04]} 28. Rxf1 {[%clk 0:01:59]}  Kg7 {[%clk 0:00:05]} 29. Ng1 {[%clk 0:01:56]}  Nf6 {[%clk 0:00:05]} 30. Nh3 {[%clk 0:01:55]}  Ng4 {[%clk 0:00:05]} 31. Ng5 {[%clk 0:01:56]}  Bxg5 {[%clk 0:00:05]} 32. hxg5 {[%clk 0:01:55]}  a6 {[%clk 0:00:03]} 33. Rf3 {[%clk 0:01:51]}  Rf8 {[%clk 0:00:00]} 34. Kb2 {[%clk 0:01:50]} 1-0

[Event "January 2 Late 2024"]
[Site "https://www.chess.com"]
[Date "2024.01.02"]
[Round "3"]
[White "Gurevich, Dmitry"]
[Black "Pepino, Enrico"]
[Result "1-0"]
[Board "185"]
[TimeControl "180+1"]
[WhiteFideId "2000407"]
[BlackFideId "810908"]
[WhiteElo "2418"]
[BlackElo "2063"]
[WhiteTeam "USA"]
[BlackTeam "ITA"]
[WhiteClock "0:01:14"]
[BlackClock "0:00:05"]

1. d4 {[%clk 0:03:00]}  Nf6 {[%clk 0:02:57]} 2. c4 {[%clk 0:02:59]}  e6 {[%clk 0:02:57]} 3. Nc3 {[%clk 0:02:57]}  d5 {[%clk 0:02:58]} 4. Nf3 {[%clk 0:02:54]}  Nbd7 {[%clk 0:02:57]} 5. cxd5 {[%clk 0:02:49]}  exd5 {[%clk 0:02:56]} 6. Bf4 {[%clk 0:02:49]}  c6 {[%clk 0:02:55]} 7. e3 {[%clk 0:02:49]}  Be7 {[%clk 0:02:55]} 8. Bd3 {[%clk 0:02:49]}  O-O {[%clk 0:02:55]} 9. h3 {[%clk 0:02:49]}  Re8 {[%clk 0:02:55]} 10. O-O {[%clk 0:02:49]}  Nf8 {[%clk 0:02:52]} 11. Rb1 {[%clk 0:02:49]}  Ng6 {[%clk 0:02:43]} 12. b4 {[%clk 0:02:48]}  Nxf4 {[%clk 0:02:38]} 13. exf4 {[%clk 0:02:47]}  Bd6 {[%clk 0:02:28]} 14. Ne5 {[%clk 0:02:47]}  a6 {[%clk 0:02:18]} 15. a4 {[%clk 0:02:45]}  Qe7 {[%clk 0:01:30]} 16. Re1 {[%clk 0:02:40]}  Qf8 {[%clk 0:01:30]} 17. b5 {[%clk 0:02:21]}  cxb5 {[%clk 0:01:28]} 18. axb5 {[%clk 0:02:21]}  a5 {[%clk 0:01:29]} 19. Qf3 {[%clk 0:02:11]}  Bb4 {[%clk 0:01:21]} 20. Rec1 {[%clk 0:02:06]}  Bxc3 {[%clk 0:01:00]} 21. Rxc3 {[%clk 0:02:05]}  a4 {[%clk 0:01:00]} 22. Ra1 {[%clk 0:01:57]}  Ne4 {[%clk 0:00:20]} 23. Rc7 {[%clk 0:01:54]}  f6 {[%clk 0:00:18]} 24. Ng4 {[%clk 0:01:32]}  Nd2 {[%clk 0:00:15]} 25. Qxd5+ {[%clk 0:01:26]}  Be6 {[%clk 0:00:15]} 26. Bxh7+ {[%clk 0:01:17]}  Kxh7 {[%clk 0:00:12]} 27. Qh5+ {[%clk 0:01:16]}  Kg8 {[%clk 0:00:12]} 28. Nh6+ {[%clk 0:01:16]}  Kh7 {[%clk 0:00:05]} 29. Nf7+ {[%clk 0:01:15]}  Kg8 {[%clk 0:00:05]} 30. Qh8# {[%clk 0:01:14]} 1-0

[Event "January 2 Late 2024"]
[Site "https://www.chess.com"]
[Date "2024.01.02"]
[Round "3"]
[White "Perossa, Nicolas"]
[Black "Fareh, Youness"]
[Result "1-0"]
[Board "186"]
[TimeControl "180+1"]
[WhiteFideId "2850520"]
[BlackFideId "9000526"]
[WhiteElo "2413"]
[BlackElo "2014"]
[WhiteTeam "ITA"]
[BlackTeam "MAR"]
[WhiteClock "0:00:07"]
[BlackClock "0:00:02"]

1. Nc3 {[%clk 0:02:59]}  Nf6 {[%clk 0:02:59]} 2. e4 {[%clk 0:02:58]}  e5 {[%clk 0:02:57]} 3. Nge2 {[%clk 0:02:45]}  Bc5 {[%clk 0:02:52]} 4. d4 {[%clk 0:02:45]}  exd4 {[%clk 0:02:52]} 5. Nxd4 {[%clk 0:02:46]}  O-O {[%clk 0:02:51]} 6. Be3 {[%clk 0:02:46]}  Re8 {[%clk 0:02:48]} 7. Qd3 {[%clk 0:02:43]}  Bb4 {[%clk 0:02:40]} 8. Bg5 {[%clk 0:02:19]}  Qe7 {[%clk 0:02:28]} 9. Bxf6 {[%clk 0:01:35]}  Qxf6 {[%clk 0:02:27]} 10. O-O-O {[%clk 0:01:35]}  Bxc3 {[%clk 0:02:20]} 11. Qxc3 {[%clk 0:01:36]}  Nc6 {[%clk 0:02:13]} 12. f3 {[%clk 0:01:28]}  d6 {[%clk 0:02:02]} 13. Bc4 {[%clk 0:01:16]}  Bd7 {[%clk 0:01:57]} 14. Bb3 {[%clk 0:01:10]}  a5 {[%clk 0:01:51]} 15. Kb1 {[%clk 0:01:05]}  Nxd4 {[%clk 0:01:40]} 16. Qxd4 {[%clk 0:00:56]}  Qxd4 {[%clk 0:01:39]} 17. Rxd4 {[%clk 0:00:57]}  b5 {[%clk 0:01:35]} 18. a3 {[%clk 0:00:53]}  Be6 {[%clk 0:01:27]} 19. c4 {[%clk 0:00:38]}  Reb8 {[%clk 0:01:18]} 20. Rc1 {[%clk 0:00:28]}  Kf8 {[%clk 0:01:15]} 21. Rd3 {[%clk 0:00:20]}  a4 {[%clk 0:01:12]} 22. Ba2 {[%clk 0:00:20]}  b4 {[%clk 0:01:12]} 23. axb4 {[%clk 0:00:18]}  Rxb4 {[%clk 0:01:12]} 24. c5 {[%clk 0:00:18]}  Rab8 {[%clk 0:01:08]} 25. Rc2 {[%clk 0:00:12]}  Bxa2+ {[%clk 0:00:58]} 26. Kxa2 {[%clk 0:00:13]}  dxc5 {[%clk 0:00:58]} 27. Rdc3 {[%clk 0:00:13]}  c4 {[%clk 0:00:55]} 28. Rxc4 {[%clk 0:00:12]}  Rxc4 {[%clk 0:00:47]} 29. Rxc4 {[%clk 0:00:13]}  Rb7 {[%clk 0:00:43]} 30. Rxa4 {[%clk 0:00:12]}  Ke7 {[%clk 0:00:43]} 31. Rd4 {[%clk 0:00:13]}  f6 {[%clk 0:00:43]} 32. b4 {[%clk 0:00:13]}  g6 {[%clk 0:00:40]} 33. Ka3 {[%clk 0:00:08]}  Ra7+ {[%clk 0:00:36]} 34. Kb2 {[%clk 0:00:07]}  h5 {[%clk 0:00:34]} 35. h4 {[%clk 0:00:06]}  g5 {[%clk 0:00:30]} 36. hxg5 {[%clk 0:00:05]}  fxg5 {[%clk 0:00:30]} 37. Rd5 {[%clk 0:00:06]}  g4 {[%clk 0:00:20]} 38. Rxh5 {[%clk 0:00:05]}  gxf3 {[%clk 0:00:21]} 39. gxf3 {[%clk 0:00:05]}  Ra4 {[%clk 0:00:19]} 40. Kb3 {[%clk 0:00:05]}  Ra1 {[%clk 0:00:20]} 41. Rf5 {[%clk 0:00:05]}  Rb1+ {[%clk 0:00:20]} 42. Kc4 {[%clk 0:00:06]}  Rc1+ {[%clk 0:00:19]} 43. Kb5 {[%clk 0:00:06]}  Re1 {[%clk 0:00:17]} 44. Kc6 {[%clk 0:00:06]}  Rc1+ {[%clk 0:00:17]} 45. Kb7 {[%clk 0:00:06]}  Kd6 {[%clk 0:00:15]} 46. b5 {[%clk 0:00:06]}  Rb1 {[%clk 0:00:14]} 47. Rd5+ {[%clk 0:00:05]}  Ke6 {[%clk 0:00:13]} 48. Kxc7 {[%clk 0:00:05]}  Rc1+ {[%clk 0:00:13]} 49. Kb7 {[%clk 0:00:04]}  Rf1 {[%clk 0:00:12]} 50. Rf5 {[%clk 0:00:04]}  Rb1 {[%clk 0:00:12]} 51. b6 {[%clk 0:00:05]}  Rb3 {[%clk 0:00:11]} 52. Ka7 {[%clk 0:00:05]}  Ra3+ {[%clk 0:00:11]} 53. Kb8 {[%clk 0:00:05]}  Rb3 {[%clk 0:00:11]} 54. b7 {[%clk 0:00:06]}  Ra3 {[%clk 0:00:12]} 55. Rc5 {[%clk 0:00:06]}  Kd6 {[%clk 0:00:11]} 56. Rd5+ {[%clk 0:00:06]}  Kc6 {[%clk 0:00:10]} 57. Rh5 {[%clk 0:00:06]}  Rb3 {[%clk 0:00:10]} 58. Rh6+ {[%clk 0:00:06]}  Kd7 {[%clk 0:00:10]} 59. Ka7 {[%clk 0:00:06]}  Ra3+ {[%clk 0:00:09]} 60. Ra6 {[%clk 0:00:07]}  Rb3 {[%clk 0:00:09]} 61. b8=Q {[%clk 0:00:07]}  Rxb8 {[%clk 0:00:02]} 62. Kxb8 {[%clk 0:00:07]} 1-0

[Event "January 2 Late 2024"]
[Site "https://www.chess.com"]
[Date "2024.01.02"]
[Round "3"]
[White "Senft, Sean"]
[Black "Reinecke, Katharina"]
[Result "1-0"]
[Board "187"]
[TimeControl "180+1"]
[WhiteFideId "2044960"]
[BlackFideId "12929727"]
[WhiteElo "2409"]
[BlackElo "2024"]
[WhiteTeam "USA"]
[BlackTeam "GER"]
[WhiteClock "0:01:19"]
[BlackClock "0:00:32"]

1. d4 {[%clk 0:03:00]}  d5 {[%clk 0:02:59]} 2. c4 {[%clk 0:03:01]}  c6 {[%clk 0:02:58]} 3. Nc3 {[%clk 0:03:01]}  Nf6 {[%clk 0:02:58]} 4. Nf3 {[%clk 0:03:02]}  e6 {[%clk 0:02:56]} 5. cxd5 {[%clk 0:03:03]}  exd5 {[%clk 0:02:53]} 6. Bg5 {[%clk 0:03:03]}  Bd6 {[%clk 0:02:48]} 7. e3 {[%clk 0:03:04]}  O-O {[%clk 0:02:48]} 8. Bd3 {[%clk 0:03:05]}  h6 {[%clk 0:02:47]} 9. Bh4 {[%clk 0:03:04]}  Nbd7 {[%clk 0:02:45]} 10. Qc2 {[%clk 0:03:04]}  Re8 {[%clk 0:02:43]} 11. O-O-O {[%clk 0:03:04]}  Nf8 {[%clk 0:02:41]} 12. Ne5 {[%clk 0:03:03]}  Bxe5 {[%clk 0:02:28]} 13. dxe5 {[%clk 0:03:04]}  Rxe5 {[%clk 0:02:28]} 14. e4 {[%clk 0:03:05]}  dxe4 {[%clk 0:02:17]} 15. Nxe4 {[%clk 0:03:01]}  Qe7 {[%clk 0:01:47]} 16. Nxf6+ {[%clk 0:02:56]}  gxf6 {[%clk 0:01:47]} 17. Qd2 {[%clk 0:02:52]}  Bf5 {[%clk 0:01:06]} 18. Qxh6 {[%clk 0:02:38]}  Qc5+ {[%clk 0:00:54]} 19. Kb1 {[%clk 0:02:34]}  Bxd3+ {[%clk 0:00:51]} 20. Rxd3 {[%clk 0:02:34]}  Re2 {[%clk 0:00:46]} 21. Bxf6 {[%clk 0:01:21]}  Qc2+ {[%clk 0:00:31]} 22. Ka1 {[%clk 0:01:20]}  Ne6 {[%clk 0:00:32]} 23. Qh8# {[%clk 0:01:19]} 1-0

[Event "January 2 Late 2024"]
[Site "https://www.chess.com"]
[Date "2024.01.02"]
[Round "3"]
[White "Perske, Thore"]
[Black "Skaric, Djuro"]
[Result "1-0"]
[Board "190"]
[TimeControl "180+1"]
[WhiteFideId "12902195"]
[BlackFideId "934569"]
[WhiteElo "2649"]
[BlackElo "2288"]
[WhiteTeam "GER"]
[BlackTeam "SRB"]
[WhiteClock "0:00:37"]
[BlackClock "0:01:20"]

1. d4 {[%clk 0:02:54]}  d6 {[%clk 0:03:00]} 2. g3 {[%clk 0:02:53]}  g6 {[%clk 0:02:59]} 3. Bg2 {[%clk 0:02:53]}  Bg7 {[%clk 0:02:58]} 4. e4 {[%clk 0:02:53]}  Nf6 {[%clk 0:02:59]} 5. Ne2 {[%clk 0:02:53]}  O-O {[%clk 0:02:59]} 6. Nbc3 {[%clk 0:02:53]}  Nc6 {[%clk 0:03:00]} 7. h3 {[%clk 0:02:53]}  e5 {[%clk 0:03:00]} 8. Be3 {[%clk 0:02:54]}  h6 {[%clk 0:03:00]} 9. Qd2 {[%clk 0:02:53]}  Kh7 {[%clk 0:03:00]} 10. O-O {[%clk 0:02:53]}  Nd7 {[%clk 0:03:00]} 11. Rad1 {[%clk 0:02:52]}  f5 {[%clk 0:03:00]} 12. exf5 {[%clk 0:02:51]}  gxf5 {[%clk 0:03:00]} 13. dxe5 {[%clk 0:02:51]}  dxe5 {[%clk 0:03:00]} 14. Nd5 {[%clk 0:02:37]}  Nb6 {[%clk 0:02:54]} 15. b3 {[%clk 0:02:24]}  Be6 {[%clk 0:02:51]} 16. Nec3 {[%clk 0:02:18]}  e4 {[%clk 0:02:46]} 17. Nxb6 {[%clk 0:02:12]}  axb6 {[%clk 0:02:45]} 18. a4 {[%clk 0:02:03]}  Qf6 {[%clk 0:02:42]} 19. Ne2 {[%clk 0:02:00]}  Rad8 {[%clk 0:02:39]} 20. Qc1 {[%clk 0:02:01]}  Ne5 {[%clk 0:02:34]} 21. Nf4 {[%clk 0:01:59]}  Bf7 {[%clk 0:02:33]} 22. Rxd8 {[%clk 0:01:57]}  Rxd8 {[%clk 0:02:32]} 23. Rd1 {[%clk 0:01:57]}  Rd6 {[%clk 0:02:19]} 24. Rxd6 {[%clk 0:01:56]}  Qxd6 {[%clk 0:02:18]} 25. Qd2 {[%clk 0:01:55]}  Qc6 {[%clk 0:02:08]} 26. h4 {[%clk 0:01:40]}  Ng4 {[%clk 0:02:04]} 27. Bh3 {[%clk 0:01:31]}  h5 {[%clk 0:02:00]} 28. Bxg4 {[%clk 0:01:30]}  hxg4 {[%clk 0:01:59]} 29. Ng2 {[%clk 0:01:21]}  Bc3 {[%clk 0:01:56]} 30. Qc1 {[%clk 0:01:19]}  Qd5 {[%clk 0:01:47]} 31. Nf4 {[%clk 0:01:12]}  Qd6 {[%clk 0:01:47]} 32. Kf1 {[%clk 0:01:05]}  c5 {[%clk 0:01:46]} 33. Ne2 {[%clk 0:00:59]}  Ba5 {[%clk 0:01:38]} 34. Bf4 {[%clk 0:00:56]}  Qd7 {[%clk 0:01:32]} 35. Be5 {[%clk 0:00:55]}  c4 {[%clk 0:01:31]} 36. Qg5 {[%clk 0:00:51]}  Be8 {[%clk 0:01:28]} 37. Qf6 {[%clk 0:00:40]}  Qf7 {[%clk 0:01:21]} 38. Qh8+ {[%clk 0:00:37]}  Kg6 {[%clk 0:01:20]} 39. Nf4# {[%clk 0:00:37]} 1-0